Cogmind - Beta 11.1 @@@ ROGUE MODE // 2022.04.23 @ 19:42:21 Player: Runia Result: Destroyed by D-53 Grenadier with Mini Grenade Launcher Performance ------------- Evolutions (0) 0 Regions Visited (2) 400 Robots Destroyed (12) 60 Value Destroyed (388) 388 Prototype IDs (3) 60 Alien Tech Used (0) 0 Bonus (0) 0 TOTAL SCORE: 908 Bonus ------- None Cogmind --------- Core Integrity 0/250 Matter 279/300 Energy 89/100 System Corruption 0% Temperature Warm (141) Movement Core (400) Ox7 Location -10/Mines Parts ------- > --- POWER (1) -------- (None) > --- PROPULSION (2) --- Wheel > --- UTILITY (2) ------ Large Storage Unit > --- WEAPON (2) ------- Particle Gun > --- INVENTORY (15) --- Ion Engine Wheel Huge Storage Unit Large Matter Pod (0) Grenade Launcher Mining Laser Peak State ------------ > --- POWER ------------ Light Nuclear Core > --- PROPULSION ------- Light Treads Wheel > --- UTILITY ---------- Large Storage Unit > --- WEAPON ----------- Particle Gun Assault Rifle > --- INVENTORY -------- Ion Engine Wheel Huge Storage Unit Large Matter Pod Small Laser Small Laser Grenade Launcher Mining Laser [Rating: 9] Favorites ----------- Power Ion Engine Engine Ion Engine Power Core Light Nuclear Core Propulsion Light Treads Treads Light Treads Leg Aluminum Leg Wheel Wheel Utility Large Storage Unit Storage Large Storage Unit Weapon Assault Rifle Energy Gun Small Laser Ballistic Gun Assault Rifle Launcher Grenade Launcher Build | -11 -10 -10 ------- Run | Scr Mat Min Slots Evolved . | . . . Power . | . . . Propulsion . | . . . Utility . | . . . Weapon . | . . . Parts Attached 14 | 3 4 7 Power 2 | . 2 . Engine 1 | . 1 . Core 1 | . 1 . Reactor . | . . . Propulsion 3 | 2 1 . Treads 2 | 2 . . Leg . | . . . Wheel 1 | . 1 . Hover . | . . . Flight . | . . . Utility 1 | . 1 . Device . | . . . Storage 1 | . 1 . Processor . | . . . Hackware . | . . . Protection . | . . . Artifact . | . . . Weapon 8 | 1 . 7 Energy Gun 4 | . . 4 Energy Cannon . | . . . Ballistic Gun 2 | 1 . 1 Ballistic Cannon . | . . . Launcher 2 | . . 2 Special Weapon . | . . . Impact Weapon . | . . . Slashing Weapon . | . . . Piercing Weapon . | . . . Special Melee Weapon . | . . . Unidentified Prototypes . | . . . Parts Lost 6 | . 1 5 Power 1 | . . 1 Propulsion 2 | . 1 1 Utility . | . . . Weapon 3 | . . 3 Highest Loss Streak 4 | . 1 4 To Critical Strikes . | . . . Average Slot Usage (%) 83 | . 84 82 Engine 7 | . 10 . Core 6 | . 3 13 Treads 21 | . 24 13 Wheel 6 | . 3 14 Storage 13 | . 13 14 Energy Gun 3 | . . 13 Ballistic Gun 23 | . 28 12 Naked Turns . | . . . Heaviest Build 30 | 13 28 30 Greatest Support 40 | 40 40 10 Greatest Overweight (x) 2 | . 2 2 Average Overweight (x) . | . . 2 Largest Inventory Capacity 15 | 8 15 15 Average Capacity 14 | 8 14 15 Most Carried 8 | 6 7 8 Average Carried 3 | 2 2 6 Final Capacity 15 | 8 15 15 Final Carried 7 | 1 7 6 Class Distribution -------------------- 100% | Mutant Dominant Class ---------------- Mutant | -10/Materials Mutant | -10/Mines Resources | -11 -10 -10 ----------- Run | Scr Mat Min Matter Collected 478 | 200 191 87 Remotely . | . . . Salvage Created 420 | . 328 92 Parts 22 | . 13 9 Haulers Intercepted . | . . . Recyclers Shooed 1 | . 1 . Parts Field Recycled . | . . . Retrieved Matter . | . . . Parts Self-Destructed . | . . . Prevented . | . . . Kills | -11 -10 -10 ------- Run | Scr Mat Min Combat Hostiles Destroyed 12 | . 7 5 Guns 8 | . 7 1 AOE 4 | . . 4 Classes Destroyed 2 | . 1 1 Swarmer 3 | . . 3 Grunt 9 | . 7 2 Best Kill Streak 3 | . 3 3 Combat Bots Only 3 | . 3 3 Max Kills in Single Turn 2 | . 1 2 Gunslinging . | . . . Exploded 2 | . . 2 Melee . | . . . Uniques/NPCs Destroyed . | . . . Combat | -11 -10 -10 -------- Run | Scr Mat Min Damage Taken 1054 | . 610 444 Core 252 | . 100 152 Absorbed by Shields . | . . . Core Remaining (%) 100 | 100 . . Volleys Fired 50 | 1 40 9 Largest 2 | 2 2 2 Hottest 105 | 40 40 105 Shots Fired 96 | 2 80 14 Gun 94 | 2 80 12 Cannon . | . . . Launcher 2 | . . 2 Special . | . . . Kinetic 85 | 2 80 3 Thermal 9 | . . 9 Explosive 2 | . . 2 Electromagnetic . | . . . Robot Hit Streak 12 | 2 12 2 Robot Miss Streak 3 | . 2 3 Penetration Max . | . . . Secondary Targets 1 | . 1 . Max Gunslinging Chain 1 | . 1 . Shots Hit Robots 63 | 2 55 6 Core Hits 28 | 1 20 7 Critical Kills . | . . . Critical Parts Destroyed 2 | . 2 . Critical Strikes 2 | . 2 . Destroy 2 | . 2 . Melee Attacks . | . . . Impact . | . . . Slashing . | . . . Piercing . | . . . Sneak Attacks . | . . . Combat Hostiles . | . . . Follow-up Attacks . | . . . Damage Inflicted 863 | 20 551 292 Guns 636 | 20 548 68 Cannons . | . . . Explosions 224 | . . 224 Melee . | . . . Ramming 3 | . 3 . Kinetic 581 | 20 548 13 Thermal 55 | . . 55 Explosive 224 | . . 224 Electromagnetic . | . . . Impact . | . . . Slashing . | . . . Piercing . | . . . Highest Corruption . | . . . Average Corruption . | . . . Corruption Purged . | . . . Corruption Blocked . | . . . Overload Shots . | . . . Overflow Damage . | . . . Projectiles . | . . . Explosions . | . . . Melee . | . . . Knockbacks . | . . . Impact . | . . . Kinetic . | . . . Secondary . | . . . Self-Inflicted Damage 18 | . . 18 Shots 1 | . . 1 Rammed 1 | . 1 . Targets Rammed 1 | . 1 . Kicked . | . . . Crushed . | . . . Highest Temperature 141 | . 49 141 Average Temperature 24 | . 13 61 Received Heat Transfer 375 | . 375 . Siege Activations . | . . . Robots Corrupted . | . . . Combat Hostiles . | . . . Parts Fried . | . . . Impact Corruptions . | . . . Robots Melted . | . . . Combat Hostiles . | . . . Parts Melted . | . . . Heat Transferred 124 | . . 124 Parts Sabotaged . | . . . Parts Stolen . | . . . Parts Stripped . | . . . Power Chain Reactions . | . . . Missiles Intercepted . | . . . Alert | -11 -10 -10 ------- Run | Scr Mat Min Peak Influence 189 | . 189 167 Initial 12 | . . 12 Average 70 | . 49 122 Maximum Alert Level . | . . . Low Security (%) 100 | 100 100 100 Level 1 . | . . . Level 2 . | . . . Level 3 . | . . . Level 4 . | . . . Level 5 . | . . . High Security . | . . . Max Security . | . . . Squads Dispatched 1 | . 1 . Investigation 1 | . 1 . Extermination . | . . . Reinforcement . | . . . Assault . | . . . Garrison . | . . . Intercept . | . . . Searches Triggered . | . . . Construction Impeded . | . . . Haulers Reinforced . | . . . Active Scanning Responses . | . . . Cargo Convoy Interrupts . | . . . Stealth | -11 -10 -10 --------- Run | Scr Mat Min Distress Signals . | . . . Communications Jammed . | . . . Distress Signals . | . . . Times Spotted 17 | . 10 7 Peak Tracking Total 5 | . 5 3 Tactical Retreats 1 | . 1 . Traps | -11 -10 -10 ------- Run | Scr Mat Min Traps Triggered 1 | . 1 . Indirectly . | . . . Trap Hack Attempts . | . . . Triggered . | . . . Disarmed . | . . . Reprogrammed . | . . . Reused . | . . . Traps Extracted . | . . . Installed . | . . . Triggered . | . . . Machines | -11 -10 -10 ---------- Run | Scr Mat Min Machines Disabled . | . . . Max in Single Turn . | . . . Machines Sabotaged . | . . . Garrisons Compromised . | . . . Overloaded Fab Kills . | . . . Hacking | -11 -10 -10 --------- Run | Scr Mat Min Machines Accessed 4 | . 4 . Terminals 4 | . 4 . Fabricators . | . . . Repair Stations . | . . . Recycling Units . | . . . Scanalyzers . | . . . Garrison Access . | . . . Total Hacks 14 | . 14 . Successful 10 | . 10 . Failed 4 | . 4 . Catastrophic 1 | . 1 . Database Lockouts . | . . . Manual 8 | . 8 . Terminals 14 | . 14 . Fabricators . | . . . Repair Stations . | . . . Recycling Units . | . . . Scanalyzers . | . . . Garrison Access . | . . . Terminal Hacks 9 | . 9 . Prototype ID Bank 2 | . 2 . Terminal Index 2 | . 2 . Unreport Threat 1 | . 1 . Hauler Manifests 1 | . 1 . Zone Layout 3 | . 3 . Fabricator Hacks . | . . . Repair Station Hacks . | . . . Recycling Unit Hacks . | . . . Scanalyzer . | . . . Garrison Access Hacks . | . . . Unauthorized Hacks 1 | . 1 . Terminals 1 | . 1 . Operators 1 | . 1 . Fabricators . | . . . Repair Stations . | . . . Recycling Units . | . . . Scanalyzers . | . . . Garrison Access . | . . . Data Cores Recovered . | . . . Used . | . . . Hacking Detections 4 | . 4 . Full Trace Events . | . . . Feedback Events . | . . . Feedback Blocked . | . . . Robot Schematics Acquired . | . . . Robots Built . | . . . Authchips . | . . . Time . | . . . Total Robot Build Rating . | . . . Part Schematics Acquired . | . . . Parts Built . | . . . Authchips . | . . . Time . | . . . Total Part Build Rating . | . . . Parts Repaired . | . . . Time . | . . . Parts Recycled . | . . . Recycled Matter . | . . . Retrieved Matter . | . . . Retrieved Components . | . . . Parts Scanalyzed . | . . . Part Schematics Acquired . | . . . Parts Damaged . | . . . Bothacking | -11 -10 -10 ------------ Run | Scr Mat Min Used RIF Installer . | . . . Robots Hacked . | . . . Non-combat . | . . . Combat . | . . . Robot Hacks Applied . | . . . Relay Couplers Released . | . . . Fabnet Peak Effective % . | . . . Robots Rewired . | . . . Allies Hacked . | . . . Hacks Repelled . | . . . Allies | -11 -10 -10 -------- Run | Scr Mat Min Total Allies . | . . . Largest Group . | . . . Highest-Rated Group . | . . . Highest-Rated Ally . | . . . Total Orders . | . . . Ally Attacks . | . . . Total Damage . | . . . Kills . | . . . Allies Corrupted . | . . . Allies Melted . | . . . Intel | -11 -10 -10 ------- Run | Scr Mat Min Robot Analysis Total . | . . . Derelict Logs Recovered . | . . . Drone Launches . | . . . Drone Recoveries . | . . . Exploration | -11 -10 -10 ------------- Run | Scr Mat Min Turns Passed 729 | 9 510 210 Spaces Moved 350 | 1 261 88 Core . | . . . Treads 177 | 1 176 . Legs . | . . . Wheels 173 | . 85 88 Hover . | . . . Flight . | . . . Fastest Speed 110 | 160 110 110 Average Speed 135 | 160 144 110 Slowest Speed 240 | 160 240 110 Overloaded Moves . | . . . Propulsion Burnouts . | . . . Robots Hopped . | . . . Cave-ins Triggered . | . . . Exploration Rate (%) 29 | 2 65 21 Regions Visited 2 Branch Regions 1 Pre-discovered Areas . | . . . Known Exits Taken . | . . . Unknown Exits Taken 2 | 1 1 . Scrap Searched . | . . . Spaces Dug . | . . . Terrain Destroyed 15 | . . 15 Melee . | . . . Projectile . | . . . AOE 15 | . . 15 Terrain Rammed . | . . . Walls Destroyed . | . . . Machines Disabled . | . . . Actions | -11 -10 -10 --------- Run | Scr Mat Min Total 518 | 9 323 186 Wait 85 | . 6 79 Move 348 | . 260 88 Hop . | . . . Pick Up 11 | . 9 2 Fast Attach 1 | . 1 . Attach 6 | 2 2 2 Detach . | . . . Swap 7 | 1 1 5 Drop 9 | 5 3 1 Fire 50 | 1 40 9 Melee . | . . . Ram . | . . . Kick . | . . . Crush 1 | . 1 . Escape Stasis . | . . . Rewire . | . . . Trap . | . . . Miscellaneous . | . . . Route ------- -11/Scrapyard -10/Materials (discovered 3 exits: [*Mat] / [*Min x2]) -10/Mines History --------- Turn | Location | Event 10 | -11/Scrapyard | Discovered new exit (range 0) 10 | -11/Scrapyard | Entered Materials 199 | -10/Materials | Discovered new exit (range 15) 275 | -10/Materials | Discovered new exit (range 5) 314 | -10/Materials | Build established: Mutant 462 | -10/Materials | Discovered new exit (range 14) 520 | -10/Materials | Entered Mines 521 | -10/Mines | Assembled infested the area 723 | -10/Mines | Core integrity fell below 50% 729 | -10/Mines | Core integrity fell below 20% 730 | -10/Mines | Destroyed by D-53 Grenadier with Mini Grenade Launcher Last Messages --------------- Something is scanning the area. 00521_ ALERT: Infestation in the mines, dispatching Demolisher response squad. 00521_ Lgt. Assault Rifle destroyed. 00522_ S-10 Pest destroyed. 00591_ U-05 Engineer lays Concrete. 00617_ Acquired 12 matter. 00638_ G-34 Mercenary destroyed. 00638_ G-47 Trooper destroyed. 00647_ Acquired Sml. Laser. 00648_ Acquired 24 matter. 00649_ Acquired 51 matter. 00652_ Acquired Particle Gun. 00654_ Dropped Sml. Laser. 00669_ The unstable cave ceiling collapses. 00718_ Assault Rifle destroyed. 00725_ Lgt. Nuclear Core destroyed. 00726_ The unstable cave ceiling collapses. 00726_ Lgt. Treads destroyed. 00729_ Sml. Laser destroyed. Map ----- +----------------------------------------------------+ | | | | | | | | | ???????????????????????????????????????? | | ???????????????????????????????????????? | | ???????????????????????####????????????? | | ??????????????????????## ##???????????? | | ?????????????????????## #???????????? | | ????????????????????## ##??????????? | | ????????????????##### ######?????? | | ???????????????## #?????? | | ???????????????# ##### #?????? | | ???????????????# ## ###???# #?????? | | ???????????????## #######?????# #?????? | | ????????????????# #####????????# #?????? | | ????????????????# #######??# #?????? | | ????????????????# ##?# #?????? | | ????????????????#### ### #?????? | | ???????????????????# ## #?????? | | ???????????????????## ## #?????? | | ????????????????????# ## #?????? | | ?????????????### ???# ### #?????? | | ?????????????# # ## ##????? | | ????????????# u #????? | | ??????????????????# @ #????? | | ??????????????????## ### #????? | | ???????????????????# #?# #????? | | ???????????????????# ##?# #????? | | ???????????????????# $ ##??# #????? | | ???????????????????# ## ####??# #????? | | ???????????????????# ?#dd## ### #????? | | ???????????????????# ?## ## ###??? | | ???????????????????# # ##?? | | ???????????????????# #?? | | ??????????????????## #?? | | ??????????????????# ##?? | | ??????????????? = ##??? | | ??????????????? [ * #???? | | ??????????????????# ### # ##???? | | ???????????????????????## ## = #???? | | ????????????????????????## #?# #???? | | ?????????????????????????###??## #???? | | ???????????????????????????????# #???? | | ???????????????????????????????### ###?? | | ????????????????????????????###### # #?? | | ????????????????????????????# = * ##? | | ????????????????????????????# *=% #? | | ????????????????????????????# % #? | | ????????????????????????????# #? | +----------------------------------------------------+ Best States ------------- Heat Dissipation 25 Energy Generation 14 Energy Capacity 250 Matter Stores 298 Matter Capacity 300 Sight Range 16 Terrain Scan Density 10 Evasion (%) 40 Recoil Reduction 2 Item Schematics ----------------- None Robot Schematics ------------------ None Fabricated ------------ Nothing Alien Tech Used ----------------- None Achievements -------------- None Challenges ------------ None Game ------ Seed ActiveChromaticPlating Manual? 0 Play Time 00:06:53 Cumulative 595.7 hours Start 2022.04.23 @ 19:32:19 End 2022.04.23 @ 19:42:21 Sessions 1 Manual Loads 0 Difficulty Rogue Special Mode None Game No. 566 Rogue 566 Adventurer 0 Explorer 0 Win Type - Total 21 Types 10/3/4/1/1/0/1/1/0 Lore% 88 Gallery% 94 Achievement% 77 Wizard Run 0 Options --------- ASCII 0 Keyboard 0 Movement Mouse Keybinds 1 Fullscreen 2 Font 24/Smallcaps Map View 76x50 Tactical HUD 1 Map Filters NONE Filters NONE Steam 1 RUN: 1aba3c72-85ca-43ed-b331-b36b61112091